[Event "44th Chess Olympiad Open 2022"]
[Site "Chennai"]
[Date "2022.08.07"]
[Round "9.71"]
[White "Diop, Wara"]
[Black "Ndahangwapo, Heskiel"]
[Result "0-1"]
[ECO "B21"]
[WhiteElo "1636"]
[BlackElo "1904"]
[Annotator "TA"]
[PlyCount "50"]
[EventDate "2022.07.29"]
[EventType "team-tourn"]
[EventCountry "IND"]
[SourceTitle "playchess.com"]
[Source "ChessBase"]
[SourceQuality "1"]
[WhiteTeam "Senegal"]
[BlackTeam "Namibia"]
[WhiteTeamCountry "SEN"]
[BlackTeamCountry "NAM"]
[TimeControl "40/5400+30:1800+30"]

{[%evp 15,50,0,-10,-33,-29,-96,38,-28,29,-127,25,22,17,0,0,0,0,-117,-118,-110,-90,-132,-123,-423,-79,-715,-721,-827,-805,-963,-939,-29980,-29970,-29962,-11669,-29991,-29992]} 1. e4 {[%emt 0:00:28]} c5 {[%emt 0:00:27]} 2. Nf3 {[%emt 0:00:14]} d6 {[%emt 0:00:04]} 3. Bc4 {[%emt 0:01:34]} e6 {[%emt 0:00:04]} 4. c3 {[%emt 0:01:56]} Nf6 {[%emt 0:00:06]} 5. e5 {[%emt 0:02:17]} dxe5 {[%emt 0:00:06]} 6. Nxe5 {[%emt 0:00:12]} Be7 {[%emt 0:00:07]} 7. O-O {[%emt 0:01:59]} O-O {[%emt 0:00:05]} 8. d4 {[%emt 0:00:54]} cxd4 {[%emt 0:00:26] [#]} 9. Qxd4 $146 {[%emt 0:01:25] B21: Sicilian: 2 f4 and Morra Gambit.} ({Predecessor:} 9. cxd4 a6 10. a4 b6 11. Nc3 Bb7 12. Be3 Nc6 13. Nxc6 Bxc6 14. Qe2 Bb7 15. Rac1 Qd7 16. Bb3 Nd5 17. Rfd1 Rfd8 18. Qh5 g6 19. Qh3 {½-½ (41) Nun,J (2370)-Borovikov,V (2595) Pardubice 2005}) 9... Qc7 {[%emt 0:00:26] Strongly threatening ...Bc5.} 10. Bf4 {[%emt 0:03:02]} (10. Re1 $11 {keeps the balance.}) 10... Bd6 {[%emt 0:00:32]} (10... Rd8 $17 11. Qe3 Nh5) 11. Na3 {[%emt 0:05:08]} (11. Rd1 $14 Bc5 12. Ng4 $1 Nxg4 13. Bxc7 Bxd4 14. Rxd4) 11... a6 {[%emt 0:00:05]} (11... Nc6 $142 12. Nb5 Nxd4 13. Nxc7 Bxc7 14. cxd4 b6) 12. Bb3 $2 {[%emt 0:01:32]} (12. Rad1 $11 Bc5 13. Ng4 $1 Bxd4 14. Bxc7 Bxc3 15. bxc3 Nxg4 16. Be2) 12... b5 $2 {[%emt 0:01:45]} ({Better is} 12... Nc6 $17 13. Nxc6 Bxf4 14. Ne7+ Kh8 15. Nxc8 Bxh2+ 16. Kh1 Be5) 13. Rad1 {[%emt 0:06:22]} Bc5 {[%emt 0:02:59]} 14. Qd3 {[%emt 0:08:29][%cal Oe5g6] Hoping for Ng6!} Nh5 {[%emt 0:01:22]} 15. Bc2 {[%emt 0:02:12][%csl Gc2][%cal Rd3h7]} f5 {[%emt 0:00:00]} 16. Qf3 {[%emt 0:02:19] [#]} (16. Bc1 $11 {remains equal.}) 16... Nxf4 $1 $17 {[%emt 0:00:08]} 17. Qxf4 {[%emt 0:01:53] [#]} Bd6 $1 $36 {[%emt 0:00:09][%mdl 2048] Black has strong initiative.} 18. Rfe1 {[%emt 0:04:50]} Nc6 {[%emt 0:01:18][%cal Rd6e5] Against Qd4} 19. Qf3 $2 {[%emt 0:01:52][%mdl 8192]} (19. Rxd6 $17 Qxd6 20. Bb3) 19... Nxe5 $2 {[%emt 0:01:03]} 20. Rxe5 $2 {[%emt 0:04:03][%mdl 8192]} (20. Qxa8 $17 Bb7 21. Qxb7 (21. Qa7 $2 Bc5 $19) 21... Qxb7 22. Rxd6) 20... Bxe5 $19 {[%emt 0:00:24]} 21. Qxa8 {[%emt 0:01:03]} Bb7 {[%emt 0:00:09]} 22. Nxb5 {[%emt 0:02:51]} Qc6 {[%emt 0:00:43][%csl Gb7][%cal Rc6g2]} ({Inferior is} 22... Rxa8 23. Nxc7 Bxc7 24. Rd7 $17) 23. Qxf8+ {[%emt 0:02:40]} Kxf8 {[%emt 0:00:06][%csl Gb7][%cal Rc6g2]} 24. f3 {[%emt 0:01:25]} Qxb5 {[%emt 0:00:17]} 25. Bb3 {[%emt 0:00:42]} Qe2 {[%emt 0:00:16] Weighted Error Value: White=1.77/Black=0.71} 0-1

[Event "44th Chess Olympiad Open 2022"]
[Site "Chennai"]
[Date "2022.08.07"]
[Round "9.72"]
[White "Mirulla, David"]
[Black "Karelina, Polina"]
[Result "1-0"]
[ECO "B07"]
[WhiteElo "1953"]
[BlackElo "1835"]
[Annotator "TA"]
[PlyCount "113"]
[EventDate "2022.07.29"]
[EventType "team-tourn"]
[EventCountry "IND"]
[SourceTitle "playchess.com"]
[Source "ChessBase"]
[SourceQuality "1"]
[WhiteTeam "CPV"]
[BlackTeam "Bahamas"]
[BlackTeamCountry "BAH"]
[TimeControl "40/5400+30:1800+30"]

{[%evp 12,113,62,63,70,64,64,29,101,71,86,79,139,144,137,134,154,133,141,125,150,124,115,125,120,120,150,118,120,121,118,126,124,118,120,118,135,145,237,233,237,233,226,214,207,229,284,238,273,202,213,206,273,125,220,113,106,0,192,189,252,260,284,284,268,280,270,254,332,188,334,331,331,196,210,200,311,320,318,321,281,232,29983,29984,29984,29985,29985,29986,29986,29987,29987,29988,29988,29989,29990,29988,29988,29987,29987,29988,29988,29988,29988,29989]} 1. e4 {[%emt 0:00:07]} d6 {[%emt 0:00:12]} 2. d4 {[%emt 0:00:09]} Nf6 {[%emt 0:00:38]} 3. Nc3 {[%emt 0:00:17]} c6 {[%emt 0:00:13]} 4. f4 {[%emt 0:00:37]} Qa5 {[%emt 0:00:06]} 5. Bd3 {[%emt 0:00:29]} e5 {[%emt 0:00:08]} 6. Nf3 {[%emt 0:01:29]} Bg4 {[%emt 0:00:18]} 7. Be3 {[%emt 0:04:54]} Nbd7 {[%emt 0:00:32] B07: Pirc Defence: Miscellaneous Systems.} 8. h3 {[%emt 0:15:42]} exf4 {[%emt 0:06:14]} 9. Bxf4 {[%emt 0:00:53]} (9. Bd2 $5 {[%cal Rh3g4]} Bxf3 10. Qxf3 $14) 9... Bh5 {[%emt 0:03:29]} (9... Bxf3 $11 10. Qxf3 Qb4) 10. O-O {[%emt 0:07:59]} Be7 {[%emt 0:03:56]} 11. Qd2 {[%emt 0:07:09] [#]} O-O $146 {[%emt 0:10:12] [#]} (11... Qb6 $142) ({Predecessor:} 11... Qb6 12. Bc4 Bxf3 13. Rxf3 Ne5 14. Bxe5 dxe5 15. Kh1 Qxd4 16. Qxd4 exd4 17. Ne2 Nxe4 18. Bxf7+ {0-1 (38) Lucaroni,M (2310)-Galego,L (2494) Reykjavik 2009}) 12. Nd5 $1 $16 {[%emt 0:05:52][%mdl 512]} Qd8 {[%emt 0:01:18]} 13. Nxe7+ {[%emt 0:01:26]} Qxe7 {[%emt 0:00:15]} 14. Rae1 {[%emt 0:03:35]} Bg6 {[%emt 0:02:38]} 15. Bg5 {[%emt 0:04:35] And now e5 would win.} h6 {[%emt 0:04:23]} 16. Bh4 {[%emt 0:02:11] Black must now prevent e5.} Qe6 {[%emt 0:06:08][%cal Rf6e4]} 17. e5 {[%emt 0:06:33]} dxe5 {[%emt 0:01:24]} 18. Nxe5 {[%emt 0:04:59]} Bxd3 {[%emt 0:04:40]} 19. Nxd7 {[%emt 0:05:56]} ({Of course not} 19. Nxd3 $6 Qxa2 20. b3 Qa3 $11) ({Don't play} 19. cxd3 $6 Qd6 $11) 19... Qxd7 {[%emt 0:00:12]} 20. Qxd3 {[%emt 0:02:07] Rxf6 is the strong threat.} Rfe8 {[%emt 0:13:52]} 21. Bxf6 {[%emt 0:02:02]} Rxe1 {[%emt 0:00:16]} 22. Rxe1 {[%emt 0:00:21]} gxf6 {[%emt 0:00:06][%mdl 4096] Endgame KQR-KQR} 23. Qe4 {[%emt 0:01:56] Inhibits Re8. White is more active.} Rd8 {[%emt 0:00:53]} 24. c3 {[%emt 0:00:26]} Qd5 {[%emt 0:12:04]} (24... Kg7 $16 25. Re3 Rg8) 25. Qxd5 $18 {[%emt 0:01:02]} Rxd5 {[%emt 0:00:08] KR-KR} 26. Re7 {[%emt 0:00:27]} Rb5 {[%emt 0:00:32]} 27. b4 {[%emt 0:00:54]} Kf8 {[%emt 0:02:12]} 28. Rc7 {[%emt 0:01:28]} Ke8 {[%emt 0:00:24]} 29. Kf2 {[%emt 0:01:08]} a5 {[%emt 0:01:20]} 30. a3 {[%emt 0:02:06]} axb4 {[%emt 0:01:00]} 31. axb4 {[%emt 0:00:11]} ({Don't do} 31. cxb4 $6 Rb6 $16) 31... h5 {[%emt 0:00:24]} 32. Kf3 {[%emt 0:01:58]} (32. h4 $18 {is more deadly.}) 32... Rf5+ {[%emt 0:01:38]} (32... h4 $16 33. g4 hxg3) 33. Ke2 {[%emt 0:00:30]} (33. Ke4 $18 Rb5 34. h4) 33... Rg5 $16 {[%emt 0:00:39]} 34. Kf2 {[%emt 0:01:03]} (34. Kd3 $16) 34... Rf5+ $2 {[%emt 0:00:15] Black is on the road to losing.} (34... Rb5 $1 $11) 35. Kg1 $18 {[%emt 0:00:34]} Rb5 {[%emt 0:00:27]} (35... Rg5 {keeps fighting.} 36. Rxb7 Rg3) 36. h4 {[%emt 0:02:19]} Kf8 {[%emt 0:00:55]} 37. g3 {[%emt 0:05:02]} Kg7 {[%emt 0:02:34]} 38. Kf2 {[%emt 0:00:57]} Kg6 {[%emt 0:02:34]} 39. Ke3 {[%emt 0:01:42]} f5 {[%emt 0:00:18]} 40. Kd3 {[%emt 0:03:38]} (40. Rd7 $142 f6 41. Rd8) 40... f6 {[%emt 0:00:51]} (40... Kf6 {was necessary.} 41. Ke3 Ke6) 41. Ke3 {[%emt 0:33:46]} Kh6 {[%emt 0:30:29]} 42. Kd2 {[%emt 0:00:00]} (42. Rf7 $142) 42... Kg6 {[%emt 0:00:00]} 43. Rd7 {[%emt 0:00:00]} f4 {[%emt 0:00:00]} (43... Rb6 $142 44. Kd3 Rb5) 44. gxf4 {[%emt 0:00:00]} Kf5 {[%emt 0:00:00] [#]} 45. Ke3 {[%emt 0:00:00]} Kg4 {[%emt 0:00:00]} 46. Rf7 {[%emt 0:00:00]} Rf5 {[%emt 0:00:00]} (46... Kf5 $18 47. Rg7 Rb6) 47. Rg7+ {[%emt 0:00:00] White mates.} Kxh4 {[%emt 0:00:00]} 48. c4 {[%emt 0:00:00]} b5 {[%emt 0:00:00]} 49. Ke4 {[%emt 0:00:00]} bxc4 {[%emt 0:00:00]} 50. Kxf5 {[%emt 0:00:00] KR-KP} c3 {[%emt 0:00:00]} 51. Rg2 {[%emt 0:00:00]} Kh3 {[%emt 0:00:00]} 52. Rc2 {[%emt 0:00:00]} h4 {[%emt 0:00:00]} 53. Rxc3+ {[%emt 0:00:00]} Kg2 {[%emt 0:00:00]} 54. Kxf6 {[%emt 0:00:00]} h3 {[%emt 0:00:00]} 55. Ke5 {[%emt 0:00:00]} h2 {[%emt 0:00:00]} 56. Rc2+ {[%emt 0:00:00]} Kg3 {[%emt 0:00:00] [#]} 57. Rxh2 $3 {[%emt 0:00:00] Weighted Error Value: White=0.19 (very precise) /Black=0.39} 1-0

[Event "44th Chess Olympiad Open 2022"]
[Site "Chennai"]
[Date "2022.08.07"]
[Round "9.72"]
[White "Knowles, Kendrick"]
[Black "Teixeira, Gil"]
[Result "1-0"]
[ECO "D11"]
[WhiteElo "1907"]
[BlackElo "1741"]
[Annotator "TA"]
[PlyCount "103"]
[EventDate "2022.07.29"]
[EventType "team-tourn"]
[EventCountry "IND"]
[SourceTitle "playchess.com"]
[Source "ChessBase"]
[SourceQuality "1"]
[WhiteTeam "Bahamas"]
[BlackTeam "CPV"]
[WhiteTeamCountry "BAH"]
[TimeControl "40/5400+30:1800+30"]

{[%evp 13,102,3,-2,-2,-10,-2,0,0,0,-22,0,-28,0,-32,0,0,-7,-22,0,-32,91,99,100,-2,242,233,278,286,329,314,336,333,344,351,376,359,335,276,446,295,325,325,351,347,337,284,371,270,270,276,240,223,284,282,334,275,264,266,358,299,348,349,356,356,981,894,1701,1698,1915,1870,1768,1461,1677,1599,1330,1052,2230,2059,29984,29985,29985,29986,29990,29991,29992,29993,29997,29988,29998,29999,29999]} 1. d4 {[%emt 0:00:39]} d5 {[%emt 0:00:09]} 2. Nf3 {[%emt 0:00:31]} Bf5 {[%emt 0:00:15]} 3. g3 {[%emt 0:00:17]} Nf6 {[%emt 0:00:20]} 4. Bg2 {[%emt 0:00:47]} e6 {[%emt 0:00:14]} 5. O-O {[%emt 0:00:09]} Be7 {[%emt 0:00:18]} 6. c4 {[%emt 0:00:38]} c6 {[%emt 0:00:09]} 7. Nc3 {[%emt 0:00:18]} O-O {[%emt 0:00:06] 7...0-0 is better than 7...h6.} 8. h3 {[%emt 0:01:08] D11: Slav Defence: 3 Nf3 sidelines and 3...Nf6 4 e3 Bg4.} h6 {[%emt 0:00:12]} 9. b3 {[%emt 0:00:57]} Nbd7 {[%emt 0:00:16]} 10. Bb2 {[%emt 0:00:20] The position is equal.} a5 {[%emt 0:00:08]} 11. Nd2 {[%emt 0:00:49] [#]} Re8 $146 {[%emt 0:00:17]} ({Predecessor:} 11... Qb6 12. e4 dxe4 13. Ndxe4 Nxe4 14. Nxe4 Nf6 15. Nxf6+ Bxf6 16. Qd2 Rfd8 17. Rfd1 Rd7 {½-½ (86) Uzhva,A (2306)-Efanov,N (2411) Belgorod 2009}) 12. Kh2 {[%emt 0:01:06]} Rb8 {[%emt 0:01:13]} 13. a4 {[%emt 0:01:27]} Qc7 {[%emt 0:01:24]} 14. Rc1 {[%emt 0:00:45]} Qb6 {[%emt 0:00:49]} 15. e3 {[%emt 0:04:02][%cal Be2e3,Be3e4,Be4e5][%mdl 32]} Qd8 {[%emt 0:02:04]} 16. f3 {[%emt 0:00:19]} Bd6 {[%emt 0:00:17]} (16... e5 $15 {keeps the upper hand.}) 17. e4 $16 {[%emt 0:00:19]} Nh5 {[%emt 0:01:26] [#]} 18. f4 {[%emt 0:01:33] [#]} (18. exf5 Qg5 19. f4 (19. Ne2 Nxg3 20. Kg1 Nxe2+ 21. Qxe2 exf5 $17) 19... Qxg3+ 20. Kh1 Bxf4 21. Rxf4 Nxf4 $17) (18. e5 $1 $16 {[%cal Re5d6]} Nxg3 19. exd6 Nxf1+ 20. Nxf1) 18... Bg6 $2 {[%emt 0:00:21] This costs Black the game.} (18... Nxg3 $1 $11 {and Black has nothing to worry.} 19. Kxg3 (19. exf5 Nxf1+ 20. Qxf1 exf5 $17) 19... Qg5+ 20. Kh2 Bxf4+ 21. Rxf4 Qxf4+ 22. Kh1 dxe4) 19. e5 $18 {[%emt 0:00:37]} (19. exd5 exd5 20. cxd5 Ndf6 $11) 19... Bc7 {[%emt 0:03:22]} 20. Bf3 {[%emt 0:00:45]} ({But not} 20. cxd5 $6 exd5 21. Bf3 Nhf6 22. exf6 Nxf6 $18) 20... Nxf4 {[%emt 0:00:58]} 21. gxf4 {[%emt 0:00:20]} Qh4 {[%emt 0:02:55]} 22. Ne2 {[%emt 0:01:24]} ({Much less strong is} 22. cxd5 Qxf4+ 23. Kh1 Nxe5 24. dxe5 (24. Ne2 Qh4 $16) 24... Bxe5 $18) 22... Bf5 {[%emt 0:00:14]} 23. Bg2 {[%emt 0:00:35]} Bd8 {[%emt 0:03:04]} 24. Nf3 {[%emt 0:00:48]} Qe7 {[%emt 0:03:55]} 25. Qd2 {[%emt 0:01:23]} b5 $2 {[%emt 0:00:54]} (25... dxc4 26. bxc4 Qb4) 26. c5 {[%emt 0:00:33]} bxa4 {[%emt 0:00:35]} 27. bxa4 {[%emt 0:00:14]} Rb4 {[%emt 0:01:24]} 28. Bc3 {[%emt 0:00:41]} Rxa4 {[%emt 0:01:35]} 29. Ra1 {[%emt 0:00:41]} Rc4 {[%emt 0:00:27]} 30. Bxa5 {[%emt 0:00:14] Strongly threatening Bc3.} Rc2 {[%emt 0:01:38]} 31. Qd1 {[%emt 0:01:03]} Bxa5 {[%emt 0:00:12]} 32. Rxa5 {[%emt 0:00:21]} Rb2 {[%emt 0:00:38]} 33. Ng3 {[%emt 0:00:49]} Bh7 {[%emt 0:02:17]} 34. Qa1 {[%emt 0:00:27]} Reb8 {[%emt 0:00:29]} 35. Ra8 {[%emt 0:00:42] Threatens to win with Rxb8+.} R2b5 {[%emt 0:03:06]} 36. Qa7 {[%emt 0:01:46]} Rxa8 {[%emt 0:00:14]} 37. Qxa8+ {[%emt 0:00:10]} Nb8 {[%emt 0:00:33]} 38. Ra1 {[%emt 0:00:40][%cal Bf1a1,Ba1a7,Ba7d7][%mdl 32]} g5 $2 {[%emt 0:01:53]} (38... Qb7 39. Nf1 Kf8) 39. fxg5 {[%emt 0:00:39]} hxg5 {[%emt 0:00:06]} 40. Ra7 {[%emt 0:00:27]} Qd8 {[%emt 0:01:25]} 41. Nh5 {[%emt 0:30:24] Black must now prevent Nf6+.} Bg6 {[%emt 0:32:55] [#]} 42. Rd7 $3 {[%emt 0:00:49][%mdl 512]} Qf8 {[%emt 0:02:01]} (42... Qc8 43. Nf6+) 43. Nf6+ {[%emt 0:00:07]} Kg7 {[%emt 0:00:47]} 44. Rb7 {[%emt 0:00:14]} Bf5 {[%emt 0:03:31]} 45. Nxg5 {[%emt 0:00:27]} Rxb7 {[%emt 0:00:26]} 46. Qxb7 {[%emt 0:00:06] White mates.} Kg6 {[%emt 0:02:03]} 47. h4 {[%emt 0:04:06]} Kg7 {[%emt 0:01:08]} 48. Bh3 {[%emt 0:00:32]} Kg6 {[%emt 0:00:54] [#]} 49. Nxe6 $1 {[%emt 0:01:32]} Bxe6 {[%emt 0:00:20]} (49... Qh8 50. Nf4+) 50. Bxe6 {[%emt 0:00:05]} Na6 {[%emt 0:00:06]} 51. Qb1+ {[%emt 0:02:14]} Kh6 {[%emt 0:02:07]} 52. Qh7# {[%emt 0:00:30] Weighted Error Value: White=0.26 (precise) /Black=0.59} 1-0

[Event "44th Chess Olympiad Open 2022"]
[Site "Chennai"]
[Date "2022.08.07"]
[Round "9.74"]
[White "Carpenter, Paul A"]
[Black "Mlawa, Hemed"]
[Result "1/2-1/2"]
[ECO "B01"]
[WhiteElo "1938"]
[BlackElo "1896"]
[Annotator "TA"]
[PlyCount "92"]
[EventDate "2022.07.29"]
[EventType "team-tourn"]
[EventCountry "IND"]
[SourceTitle "playchess.com"]
[Source "ChessBase"]
[SourceQuality "1"]
[WhiteTeam "Channel Islands"]
[BlackTeam "Tanzania"]
[WhiteTeamCountry "JCI"]
[BlackTeamCountry "TAN"]
[TimeControl "40/5400+30:1800+30"]

{[%evp 9,92,24,39,34,39,0,7,0,4,0,0,-13,-12,-29,-14,-33,-37,-15,0,-11,-3,-4,33,0,18,0,0,0,29,-17,-24,-16,0,-22,0,0,0,-10,0,-84,0,0,0,0,0,0,7,0,0,0,34,39,41,34,54,54,48,36,38,6,6,0,6,0,0,0,0,0,0,0,0,0,0,0,0,0,0,0,0,0,0,0,0,0,0]} 1. e4 {[%emt 0:00:09]} d5 {[%emt 0:00:12]} 2. exd5 {[%emt 0:00:09]} Qxd5 {[%emt 0:00:06]} 3. Nc3 {[%emt 0:00:10]} Qd8 {[%emt 0:00:07]} 4. Nf3 {[%emt 0:01:56]} Nf6 {[%emt 0:00:08]} 5. Bc4 {[%emt 0:01:56]} e6 {[%emt 0:00:18]} 6. O-O {[%emt 0:02:29] B01: Scandinavian Defence.} a6 {[%emt 0:00:08]} 7. a4 {[%emt 0:02:11] Prevents b5.} c5 {[%emt 0:00:26]} 8. d3 {[%emt 0:22:00]} Nc6 {[%emt 0:00:52]} 9. Bg5 {[%emt 0:05:30]} Be7 {[%emt 0:00:11]} 10. Qd2 {[%emt 0:02:31]} O-O {[%emt 0:01:28]} 11. Rfe1 {[%emt 0:08:13]} b6 {[%emt 0:00:27]} 12. Rad1 {[%emt 0:06:29] [#]} Nd4 $146 {[%emt 0:07:56]} ({Predecessor:} 12... Bb7 13. Bxf6 Bxf6 14. Ne4 Na5 15. Nxf6+ Qxf6 16. Ne5 Rfd8 17. Ba2 Nc6 18. Nxf7 Kxf7 19. Re2 Qh6 20. Bxe6+ Kf6 {1-0 (20) Lange,P-Schimanski,I Germany 1996}) 13. Nxd4 {[%emt 0:12:45]} Qxd4 {[%emt 0:00:07]} 14. Qf4 {[%emt 0:02:10]} Qxf4 {[%emt 0:13:27]} 15. Bxf4 {[%emt 0:00:09]} Ra7 {[%emt 0:00:17] Inhibits Bc7.} 16. h3 {[%emt 0:10:24]} h6 {[%emt 0:02:02]} 17. Be5 {[%emt 0:02:52]} Nd7 {[%emt 0:17:14]} 18. Bf4 {[%emt 0:00:27]} Bf6 {[%emt 0:00:34]} 19. Bd2 {[%emt 0:05:17]} (19. Ne4 $142) 19... Bb7 $11 {[%emt 0:02:48]} 20. Rb1 {[%emt 0:01:26]} Be7 {[%emt 0:01:21]} 21. Bd5 {[%emt 0:02:15]} Nf6 {[%emt 0:01:15]} 22. Bxb7 {[%emt 0:00:19]} Rxb7 {[%emt 0:00:04]} 23. Bf4 {[%emt 0:01:37]} Rd8 {[%emt 0:00:31][%cal Oc5c4]} 24. Ne4 {[%emt 0:01:02]} (24. b3 $11 {remains equal.}) 24... Rd4 {[%emt 0:02:53]} (24... c4 $17 25. dxc4 Rd4 26. Nxf6+ Bxf6) 25. b3 {[%emt 0:01:04]} Nxe4 {[%emt 0:02:34]} 26. Rxe4 {[%emt 0:00:10]} Rxe4 {[%emt 0:01:25]} 27. dxe4 {[%emt 0:00:03][%mdl 4096] Endgame KRB-KRB} Rd7 {[%emt 0:00:18]} 28. Kf1 {[%emt 0:00:56]} g5 {[%emt 0:01:15]} 29. Be3 {[%emt 0:00:11]} b5 {[%emt 0:02:15]} 30. axb5 {[%emt 0:00:24]} axb5 {[%emt 0:00:02]} 31. Ra1 {[%emt 0:00:12]} c4 {[%emt 0:01:22]} 32. bxc4 {[%emt 0:00:38]} bxc4 {[%emt 0:00:08]} 33. Ra8+ {[%emt 0:00:09]} Rd8 $1 {[%emt 0:03:04]} 34. Rxd8+ {[%emt 0:04:05]} Bxd8 $14 {[%emt 0:00:05] KB-KB. The position is equal.} 35. Ke2 {[%emt 0:00:19]} Bf6 {[%emt 0:02:28]} 36. Bc5 {[%emt 0:01:13]} Bc3 {[%emt 0:00:59]} 37. Kd1 {[%emt 0:01:12]} Kg7 {[%emt 0:00:33]} 38. g4 {[%emt 0:01:22]} Kg6 {[%emt 0:00:15]} 39. Ke2 {[%emt 0:00:18]} f5 {[%emt 0:01:52]} 40. exf5+ {[%emt 0:01:43]} exf5 {[%emt 0:02:59]} 41. Ke3 {[%emt 0:10:59]} h5 {[%emt 0:02:53]} 42. f3 {[%emt 0:01:17]} hxg4 {[%emt 0:04:16]} 43. hxg4 {[%emt 0:00:14]} Bb2 {[%emt 0:01:46]} 44. Be7 {[%emt 0:10:44]} Bc3 {[%emt 0:12:33]} 45. Bd8 {[%emt 0:05:11]} Be5 {[%emt 0:08:13]} 46. Be7 {[%emt 0:01:08]} Bc3 {[%emt 0:00:23] Weighted Error Value: White=0.13 (very precise) /Black=0.08 (flawless)} 1/2-1/2

[Event "44th Chess Olympiad Open 2022"]
[Site "Chennai"]
[Date "2022.08.07"]
[Round "9.74"]
[White "Mdoe, Yusuf"]
[Black "Forbes, Garry"]
[Result "1/2-1/2"]
[ECO "E91"]
[WhiteElo "1722"]
[BlackElo "1908"]
[Annotator "TA"]
[PlyCount "99"]
[EventDate "2022.07.29"]
[EventType "team-tourn"]
[EventCountry "IND"]
[SourceTitle "playchess.com"]
[Source "ChessBase"]
[SourceQuality "1"]
[WhiteTeam "Tanzania"]
[BlackTeam "Channel Islands"]
[WhiteTeamCountry "TAN"]
[BlackTeamCountry "JCI"]
[TimeControl "40/5400+30:1800+30"]

{[%evp 15,99,39,64,0,0,0,0,-9,-14,-28,-7,-12,0,-7,-3,-3,74,95,92,67,65,69,73,54,50,29,53,45,81,0,0,0,0,0,32,0,0,0,0,0,0,0,8,0,0,8,0,0,0,0,0,0,0,-8,0,0,0,0,-6,-7,0,-17,-19,-34,0,-8,-8,-54,-56,-64,-52,-104,-106,-210,-196,-357,0,0,0,0,0,0,0,0,0,0]} 1. d4 {[%emt 0:00:12]} g6 {[%emt 0:00:07]} 2. c4 {[%emt 0:00:13]} Bg7 {[%emt 0:00:08]} 3. Nc3 {[%emt 0:00:12]} d6 {[%emt 0:00:18]} 4. e4 {[%emt 0:01:16]} Nf6 {[%emt 0:00:02]} 5. Nf3 {[%emt 0:00:25]} O-O {[%emt 0:09:25]} 6. Be2 {[%emt 0:00:05]} Bg4 {[%emt 0:00:02]} 7. Be3 {[%emt 0:00:57]} Nfd7 {[%emt 0:00:08]} 8. Qd2 {[%emt 0:01:19]} c5 {[%emt 0:00:13]} 9. h4 {[%emt 0:03:28] [#] E91: King's Indian: Classical: 6 Be2, unusual replies including 6...c5 and 6...Bg4.} ({Better is} 9. d5 $1 $14) 9... Nc6 $146 {[%emt 0:02:20]} ({Predecessor:} 9... Bxf3 10. Bxf3 Nc6 11. d5 Nd4 12. h5 Nxf3+ 13. gxf3 Ne5 14. Qe2 Qb6 15. b3 Nxf3+ 16. Qxf3 Bxc3+ {1-0 (26) Jankovic,A (2543)-Kerigan,D (2205) Kavala 2012}) 10. d5 {[%emt 0:01:27]} Bxf3 {[%emt 0:00:45]} 11. dxc6 {[%emt 0:05:08]} Bxe2 {[%emt 0:00:03]} (11... Bxg2 12. Rg1 $16) 12. cxb7 {[%emt 0:01:47] [#]} Rb8 {[%emt 0:00:46]} 13. Kxe2 {[%emt 0:02:46]} Rxb7 {[%emt 0:00:41]} 14. b3 {[%emt 0:01:19]} Qa5 {[%emt 0:09:08]} 15. Rac1 {[%emt 0:00:57]} Rfb8 {[%emt 0:23:36] [#]} (15... h5 $11 {remains equal.}) 16. h5 $1 $16 {[%emt 0:00:44]} Nf6 {[%emt 0:07:39]} 17. hxg6 {[%emt 0:04:06]} fxg6 {[%emt 0:00:48]} 18. Rh3 {[%emt 0:03:49]} Rf8 {[%emt 0:03:16]} 19. Bg5 {[%emt 0:00:53]} Rf7 {[%emt 0:03:30]} 20. f3 {[%emt 0:01:53]} (20. e5 $5 dxe5 21. Na4 $14) 20... Rb8 {[%emt 0:00:27]} 21. Rch1 {[%emt 0:03:37]} Rbf8 {[%emt 0:06:10]} 22. Bxf6 {[%emt 0:01:43] White is more active.} (22. Kd1 $16) 22... Bxf6 $11 {[%emt 0:00:33]} 23. Nd5 {[%emt 0:00:30]} Qxd2+ {[%emt 0:02:29]} 24. Kxd2 {[%emt 0:00:15]} Bd4 {[%emt 0:02:52]} 25. a3 {[%emt 0:03:46]} e6 {[%emt 0:04:32]} 26. Nc3 {[%emt 0:03:38]} Bxc3+ {[%emt 0:00:16]} 27. Kxc3 {[%emt 0:00:41][%mdl 4096] Endgame KRR-KRR} a5 {[%emt 0:00:18]} 28. Rd1 {[%emt 0:00:49]} Rd7 {[%emt 0:08:44]} 29. Rhh1 {[%emt 0:00:55]} e5 {[%emt 0:05:10]} 30. Rd5 {[%emt 0:01:33] With the idea Rhd1.} Rfd8 {[%emt 0:00:11]} 31. b4 {[%emt 0:00:31]} axb4+ {[%emt 0:04:18]} 32. axb4 {[%emt 0:00:48]} cxb4+ {[%emt 0:00:25]} 33. Kxb4 {[%emt 0:00:16]} Rc8 {[%emt 0:04:59]} 34. Rb5 {[%emt 0:01:33]} Rdc7 {[%emt 0:00:41]} 35. Rc1 {[%emt 0:00:38]} Kf7 {[%emt 0:01:48]} 36. Kb3 {[%emt 0:03:00]} h5 {[%emt 0:00:58]} 37. Rb6 {[%emt 0:02:24]} Ke7 {[%emt 0:00:32]} 38. g3 {[%emt 0:04:39]} Rf8 {[%emt 0:00:33]} 39. Rc3 {[%emt 0:00:55]} Rf6 {[%emt 0:00:26]} (39... g5 $5 {[%cal Rh5h4]}) 40. Kb4 {[%emt 0:02:15]} g5 {[%emt 0:00:38]} 41. Rd3 {[%emt 0:40:24]} (41. Rb8 $11) 41... h4 $15 {[%emt 0:02:04]} 42. gxh4 {[%emt 0:00:00]} gxh4 {[%emt 0:00:00]} 43. Kc3 {[%emt 0:00:00] [#]} (43. Rd1 $15) 43... Ra7 $1 $17 {[%emt 0:10:50]} 44. Kb4 {[%emt 0:00:00]} (44. Kb2 $17) 44... h3 $19 {[%emt 0:13:17] Strongly threatening ...h2.} 45. f4 $2 {[%emt 0:00:00]} (45. Rd2) 45... exf4 $2 {[%emt 0:00:57]} (45... Rh6 $19 46. Rd1 h2) 46. Rxh3 $11 {[%emt 0:00:00] The position is equal.} f3 {[%emt 0:00:18] And now ...f2 would win.} 47. e5 {[%emt 0:00:00]} dxe5 {[%emt 0:01:16]} 48. Rxf6 {[%emt 0:00:00][%mdl 64] Remove Defender} Kxf6 {[%emt 0:00:02]} 49. Rxf3+ {[%emt 0:00:00]} Kg5 {[%emt 0:01:37]} 50. Kb5 {[%emt 0:00:00] Weighted Error Value: White=0.20 (precise) /Black=0.22 (precise)} 1/2-1/2